Workbook

Sheet RCA
D4: Tavola 2.c - Ripartizione dei reclami RCA tra le principali aree aziendali (1) (2) anno 2022
A6: Click sul pulsante in testa a ciascuna colonna per ordinare i dati in base ai corrispondenti valori. Click su "Reset" per tornare all'ordine alfabetico
G7: Area liquidativa | J7: Area amministrativa | M7: Area commerciale
A8: Tipologia imprese: 1. Impresa vigilata 2. Impresa estera (3) | B8: Canale distributivo prevalente (4) | C8: Denominazione impresa | D8: Totale reclami RCA | E8: Reclami rca/10.000 contratti | G8: Reclami rca - area liquidativa/ 10.000 contratti rca | H8: % reclami rca - area liquidativa/ Totale reclami rca dell'impresa | J8: Reclami rca - area amministrativa/ 10.000 contratti rca | K8: % reclami rca - area amministrativa/ Totale reclami rca dell'impresa | M8: Reclami rca - area commerciale/ 10.000 contratti rca | N8: % reclami rca - area commerciale/ Totale reclami rca dell'impresa
A10: 1.Impresa vigilata | B10: Diretto | C10: ALLIANZ DIRECT SOCIETA PER AZIONI | D10: 3288 | E10: 19.44 | G10: 10.07 | H10: 51.79 | J10: 6.46 | K10: 33.21 | M10: 2.34 | N10: 12.04
A11: 1.Impresa vigilata | B11: Tradizionale | C11: ALLIANZ SOCIETA' PER AZIONI | D11: 2209 | E11: 4.59 | G11: 3.68 | H11: 80.31 | J11: 0.54 | K11: 11.68 | M11: 0.34 | N11: 7.38
A12: 1.Impresa vigilata | B12: Tradizionale | C12: ALLIANZ VIVA S.P.A. | D12: 322 | E12: 6.39 | G12: 5.46 | H12: 85.4 | J12: 0.24 | K12: 3.73 | M12: 0.46 | N12: 7.14
A13: 1.Impresa vigilata | B13: Bancario/finanziario | C13: ARCA ASSICURAZIONI S.P.A. | D13: 148 | E13: 11.9 | G13: 8.04 | H13: 67.57 | J13: 0.97 | K13: 8.11 | M13: 0.48 | N13: 4.05
A14: 1.Impresa vigilata | B14: Tradizionale | C14: ASSICURATRICE MILANESE SPA - COMPAGNIA DI ASSICURAZIONI | D14: 29 | E14: 7.63 | G14: 7.63 | H14: 100 | J14: 0 | K14: 0 | M14: 0 | N14: 0
A15: 1.Impresa vigilata | B15: Tradizionale | C15: ASSICURATRICE VAL PIAVE S.P.A. | D15: 15 | E15: 2.19 | G15: 2.05 | H15: 93.33 | J15: 0 | K15: 0 | M15: 0.15 | N15: 6.67
A16: 1.Impresa vigilata | B16: Tradizionale | C16: ASSICURAZIONI GENERALI SOCIETA' PER AZIONI | D16: 0
A17: 1.Impresa vigilata | B17: Bancario/finanziario | C17: ASSIMOCO S.P.A. COMPAGNIA DI ASSICURAZIONI E RIASSICURAZIONI - MOVIMENTO COOPERATIVO | D17: 86 | E17: 2.52 | G17: 2.2 | H17: 87.21 | J17: 0.03 | K17: 1.16 | M17: 0.21 | N17: 8.14
A18: 1.Impresa vigilata | B18: Tradizionale | C18: AXA ASSICURAZIONI S.P.A. | D18: 1368 | E18: 6.31 | G18: 5.65 | H18: 89.55 | J18: 0.41 | K18: 6.43 | M18: 0.24 | N18: 3.73
A19: 1.Impresa vigilata | B19: Bancario/finanziario | C19: AXA MPS ASSICURAZIONI DANNI SOCIETA' PER AZIONI | D19: 103 | E19: 7.74 | G19: 5.86 | H19: 75.73 | J19: 1.43 | K19: 18.45 | M19: 0.45 | N19: 5.83
A20: 1.Impresa vigilata | B20: Bancario/finanziario | C20: BANCO BPM ASSICURAZIONI S.P.A | D20: 13 | E20: 15.1 | G20: 9.29 | H20: 61.54 | J20: 2.32 | K20: 15.38 | M20: 2.32 | N20: 15.38
A21: 1.Impresa vigilata | B21: Bancario/finanziario | C21: BCC ASSICURAZIONI S.P.A. | D21: 20 | E21: 8.52 | G21: 4.69 | H21: 55 | J21: 2.56 | K21: 30 | M21: 0 | N21: 0
A22: 1.Impresa vigilata | B22: Tradizionale | C22: BENE ASSICURAZIONI S.P.A. SOCIETA BENEFIT | D22: 212 | E22: 5.9 | G22: 5.71 | H22: 96.7 | J22: 0.03 | K22: 0.47 | M22: 0.11 | N22: 1.89
A23: 1.Impresa vigilata | C23: BERKSHIRE HATHAWAY INTERNATIONAL INSURANCE LIMITED | D23: 0
A24: 1.Impresa vigilata | B24: Diretto | C24: COMPAGNIA ASSICURATRICE LINEAR S.P.A. | D24: 1223 | E24: 18.79 | G24: 6.55 | H24: 34.83 | J24: 4.44 | K24: 23.63 | M24: 2 | N24: 10.63
A25: 1.Impresa vigilata | B25: Tradizionale | C25: COMPAGNIA ITALIANA DI PREVIDENZA, ASSICURAZIONI E RIASSICURAZIONI S.P.A. | D25: 528 | E25: 5.83 | G25: 4.6 | H25: 78.98 | J25: 0.65 | K25: 11.17 | M25: 0.52 | N25: 8.9
A26: 1.Impresa vigilata | B26: Bancario/finanziario | C26: CREDIT AGRICOLE ASSICURAZIONI S.P.A. | D26: 92 | E26: 14.47 | G26: 13.37 | H26: 92.39 | J26: 0.79 | K26: 5.43 | M26: 0.16 | N26: 1.09
A27: 1.Impresa vigilata | B27: Tradizionale | C27: GENERALI ITALIA S.P.A. | D27: 1941 | E27: 4.76 | G27: 4.11 | H27: 86.3 | J27: 0.39 | K27: 8.29 | M27: 0.17 | N27: 3.61
A28: 1.Impresa vigilata | B28: Diretto | C28: GENERTEL S.P.A. | D28: 2748 | E28: 32.72 | G28: 26 | H28: 79.48 | J28: 0.58 | K28: 1.78 | M28: 5.01 | N28: 15.32
A29: 1.Impresa vigilata | B29: Tradizionale | C29: GROUPAMA ASSICURAZIONI SOCIETA' PER AZIONI | D29: 846 | E29: 6.52 | G29: 5.8 | H29: 89.01 | J29: 0.25 | K29: 3.78 | M29: 0.08 | N29: 1.18
A30: 1.Impresa vigilata | B30: Tradizionale | C30: HDI ASSICURAZIONI S.P.A. | D30: 429 | E30: 5.85 | G30: 5.09 | H30: 86.95 | J30: 0.01 | K30: 0.23 | M30: 0.67 | N30: 11.42
A31: 1.Impresa vigilata | B31: Tradizionale | C31: HDI ITALIA S.P.A. | D31: 257 | E31: 7.59 | G31: 5.7 | H31: 75.1 | J31: 1.24 | K31: 16.34 | M31: 0.47 | N31: 6.23
A32: 1.Impresa vigilata | B32: Tradizionale | C32: HELVETIA COMPAGNIA SVIZZERA D'ASSICURAZIONI S.A. | D32: 208 | E32: 4.61 | G32: 4.12 | H32: 89.42 | J32: 0.2 | K32: 4.33 | M32: 0.22 | N32: 4.81
A33: 1.Impresa vigilata | B33: Tradizionale | C33: HELVETIA ITALIA ASSICURAZIONI S.P.A. | D33: 49 | E33: 4.5 | G33: 3.67 | H33: 81.63 | J33: 0.18 | K33: 4.08 | M33: 0.55 | N33: 12.24
A34: 1.Impresa vigilata | C34: INCONTRA ASSICURAZIONI SPA | D34: 0
A35: 1.Impresa vigilata | B35: Bancario/finanziario | C35: INTESA SANPAOLO ASSICURA S.P.A. | D35: 287 | E35: 9.57 | G35: 3.9 | H35: 40.77 | J35: 2.7 | K35: 28.22 | M35: 1.67 | N35: 17.42
A36: 1.Impresa vigilata | B36: Tradizionale | C36: ITAS - ISTITUTO TRENTINO-ALTO ADIGE PER ASSICURAZIONI SOCIETA' MUTUA DI ASSICURAZIONI | D36: 302 | E36: 4.36 | G36: 3.77 | H36: 86.42 | J36: 0.3 | K36: 6.95 | M36: 0.22 | N36: 4.97
A37: 1.Impresa vigilata | B37: Diretto | C37: LE ASSICURAZIONI DI ROMA - MUTUA ASSICURATRICE ROMANA | D37: 13 | E37: 5.42 | G37: 5.42 | H37: 100 | J37: 0 | K37: 0 | M37: 0 | N37: 0
A38: 1.Impresa vigilata | B38: Tradizionale | C38: NOBIS COMPAGNIA DI ASSICURAZIONI S.P.A. | D38: 270 | E38: 8.54 | G38: 7.68 | H38: 90 | J38: 0.73 | K38: 8.52 | M38: 0.09 | N38: 1.11
A39: 1.Impresa vigilata | B39: Diretto | C39: QUIXA ASSICURAZIONI S.P.A. | D39: 549 | E39: 22.74 | G39: 17.03 | H39: 74.86 | J39: 3.11 | K39: 13.66 | M39: 0.83 | N39: 3.64
A40: 1.Impresa vigilata | C40: REVO INSURANCE S.P.A. | D40: 0
A41: 1.Impresa vigilata | B41: Tradizionale | C41: SARA ASSICURAZIONI S.P.A. ASSICURATRICE UFFICIALE DELL'AUTOMOBILE CLUB D'ITALIA | D41: 642 | E41: 5.72 | G41: 4.37 | H41: 76.32 | J41: 0.49 | K41: 8.57 | M41: 0.37 | N41: 6.54
A42: 1.Impresa vigilata | B42: Tradizionale | C42: SIAT SOCIETA' ITALIANA ASSICURAZIONI E RIASSICURAZIONI PER AZIONI | D42: 0
A43: 1.Impresa vigilata | B43: Tradizionale | C43: SOCIETA' CATTOLICA DI ASSICURAZIONE SOCIETA' PER AZIONI | D43: 1840 | E43: 7.72 | G43: 6.64 | H43: 86.03 | J43: 0.65 | K43: 8.48 | M43: 0.35 | N43: 4.51
A44: 1.Impresa vigilata | B44: Tradizionale | C44: SOCIETA' REALE MUTUA DI ASSICURAZIONI | D44: 773 | E44: 5.52 | G44: 4.37 | H44: 79.17 | J44: 0.63 | K44: 11.38 | M44: 0.42 | N44: 7.63
A45: 1.Impresa vigilata | B45: Tradizionale | C45: TUA ASSICURAZIONI SOCIETA' PER AZIONI | D45: 602 | E45: 10.49 | G45: 9.17 | H45: 87.38 | J45: 0.98 | K45: 9.3 | M45: 0.35 | N45: 3.32
A46: 1.Impresa vigilata | B46: Bancario/finanziario | C46: UNICREDIT ALLIANZ ASSICURAZIONI S.P.A. | D46: 118 | E46: 12.74 | G46: 2.92 | H46: 22.88 | J46: 4.86 | K46: 38.14 | M46: 4.86 | N46: 38.14
A47: 1.Impresa vigilata | B47: Tradizionale | C47: UNIPOLSAI ASSICURAZIONI S.P.A. | D47: 7259 | E47: 7.64 | G47: 6.03 | H47: 78.96 | J47: 0 | K47: 0.01 | M47: 0.53 | N47: 6.89
A48: 1.Impresa vigilata | B48: Bancario/finanziario | C48: VERA ASSICURAZIONI S.P.A. | D48: 10 | E48: 7.19 | G48: 5.03 | H48: 70 | J48: 0.72 | K48: 10 | M48: 0 | N48: 0
A49: 1.Impresa vigilata | B49: Tradizionale | C49: VERTI ASSICURAZIONI S.P.A. | D49: 1206 | E49: 23.55 | G49: 14.37 | H49: 61.03 | J49: 3.48 | K49: 14.76 | M49: 5.59 | N49: 23.71
A50: 1.Impresa vigilata | B50: Tradizionale | C50: VITTORIA ASSICURAZIONI S.P.A. | D50: 1673 | E50: 7.09 | G50: 5.3 | H50: 74.78 | J50: 0.43 | K50: 6.1 | M50: 0.98 | N50: 13.75
A51: 1.Impresa vigilata | B51: Diretto | C51: ZURICH INSURANCE COMPANY LTD | D51: 471 | E51: 13.22 | G51: 9.26 | H51: 70.06 | J51: 2.47 | K51: 18.68 | M51: 1.12 | N51: 8.49
A52: 2.Impresa estera | B52: Tradizionale | C52: ADMIRAL EUROPE COMPA?IA DE SEGUROS S.A. | D52: 1262 | E52: 13.75 | G52: 7.87 | H52: 57.21 | J52: 1.71 | K52: 12.44 | M52: 3.31 | N52: 24.09
A53: 2.Impresa estera | B53: Tradizionale | C53: ADRIATIC OSIGURANJE D.D. | D53: 1566 | E53: NA(5) | G53: NA(5) | H53: 98.85 | J53: 0.12 | K53: 0.13 | M53: 0.73 | N53: 0.77
A54: 2.Impresa estera | B54: Tradizionale | C54: AIG EUROPE S.A. | D54: 38 | E54: 11.63 | G54: 11.63 | H54: 100 | J54: 0 | K54: 0 | M54: 0 | N54: 0
A55: 2.Impresa estera | B55: Tradizionale | C55: AIG EUROPE S.A. (LPS) | D55: 0
A56: 2.Impresa estera | B56: Tradizionale | C56: AIOI NISSAY DOWA INSURANCE COMPANY OF EUROPE SE | D56: 54 | E56: 19.31 | G56: 12.16 | H56: 62.96 | J56: 1.07 | K56: 5.56 | M56: 0 | N56: 0
A57: 2.Impresa estera | C57: AMTRUST INTERNATIONAL UNDERWRITERS DAC | D57: 1
A58: 2.Impresa estera | B58: Tradizionale | C58: CHUBB EUROPEAN GROUP SE | D58: 1
A59: 2.Impresa estera | B59: Run-off | C59: DARAG DEUTSCHLAND AG | D59: 25 | H59: 100 | K59: 0 | N59: 0
A60: 2.Impresa estera | C60: ERGO REISEVERSICHERUNG AG | D60: 0
A61: 2.Impresa estera | B61: Run-off | C61: EURO INSURANCES DAC | D61: 16 | H61: 100 | K61: 0 | N61: 0
A62: 2.Impresa estera | B62: nd | C62: EUROHERC OSIGURANJE D.D. | D62: 267 | E62: NA(5) | G62: NA(5) | H62: 98.88 | J62: 0 | K62: 0 | M62: 0.7 | N62: 1.12
A63: 2.Impresa estera | B63: Tradizionale | C63: GREAT LAKES INSURANCE SE | D63: 1860 | E63: 16.83 | G63: 13.67 | H63: 81.18 | J63: 0.5 | K63: 2.96 | M63: 1.33 | N63: 7.9
A64: 2.Impresa estera | B64: nd | C64: GREENVAL INSURANCE DAC | D64: 45 | E64: 4.82 | G64: 4.82 | H64: 100 | J64: 0 | K64: 0 | M64: 0 | N64: 0
A65: 2.Impresa estera | B65: nd | C65: INSURANCE JSC DALLBOGG: LIFE AND HEALTH | D65: 996 | E65: NA(5) | G65: NA(5) | H65: 97.09 | J65: 2.67 | K65: 1.1 | M65: 3.64 | N65: 1.51
A66: 2.Impresa estera | B66: Tradizionale | C66: IPTIQ EMEA P&C SA | D66: 1039 | E66: 11.61 | G66: 9.26 | H66: 79.79 | J66: 0.21 | K66: 1.83 | M66: 1.03 | N66: 8.85
A67: 2.Impresa estera | B67: nd | C67: IPTIQ EMEA P&C SA (LPS) | D67: 1007 | E67: 32.26 | G67: 26.75 | H67: 82.92 | J67: 1.28 | K67: 3.97 | M67: 2.72 | N67: 8.44
A68: 2.Impresa estera | B68: Tradizionale | C68: MMA IARD SA | D68: 0
A69: 2.Impresa estera | B69: Tradizionale | C69: SOGESSUR S.A. | D69: 525 | E69: 15.54 | G69: 15.54 | H69: 100 | J69: 0 | K69: 0 | M69: 0 | N69: 0
A70: 2.Impresa estera | B70: Tradizionale | C70: WAKAM | D70: 22 | E70: 20.48 | G70: 19.55 | H70: 95.45 | J70: 0 | K70: 0 | M70: 0.93 | N70: 4.55
A71: 2.Impresa estera | B71: Tradizionale | C71: ZURICH INSURANCE PLC | D71: 554 | E71: 4.12 | G71: 3.65 | H71: 88.81 | J71: 0.25 | K71: 6.14 | M71: 0.19 | N71: 4.69
C73: Totale Imprese Italiane | D73: =IFERROR(SUMIFS(D10:D71,A10:A71,"1.Impresa vigilata"), 0) -> 32149
C74: Totale Imprese Estere (UE) | D74: =IFERROR(SUMIFS(D10:D71,A10:A71,"2.Impresa estera"), 0) -> 9278
C75: Totale complessivo | D75: =SUM(D73,D74) -> 41427
E77: Reclami danni/10.000 contratti | G77: Reclami danni area liquidativa/ 10.000 contratti | J77: Reclami danni area amministrativa/ 10.000 contratti | M77: Reclami danni area commerciale/ 10.000 contratti
C78: Valori medi Italiane | D78: canale b/f | E78: =IFERROR(AVERAGEIFS(E10:E71,A10:A71,"1.Impresa vigilata",B10:B71,"Bancario/finanziario"), 0) -> 9.972222222 | G78: =IFERROR(AVERAGEIFS(G10:G71,A10:A71,"1.Impresa vigilata",B10:B71,"Bancario/finanziario"), 0) -> 6.144444444 | J78: =IFERROR(AVERAGEIFS(J10:J71,A10:A71,"1.Impresa vigilata",B10:B71,"Bancario/finanziario"), 0) -> 1.82 | M78: =IFERROR(AVERAGEIFS(M10:M71,A10:A71,"1.Impresa vigilata",B10:B71,"Bancario/finanziario"), 0) -> 1.127777778
D79: canale tradiz. | E79: =IFERROR(AVERAGEIFS(E10:E71,A10:A71,"1.Impresa vigilata",B10:B71,"Tradizionale"), 0) -> 6.968181818 | G79: =IFERROR(AVERAGEIFS(G10:G71,A10:A71,"1.Impresa vigilata",B10:B71,"Tradizionale"), 0) -> 5.680454545 | J79: =IFERROR(AVERAGEIFS(J10:J71,A10:A71,"1.Impresa vigilata",B10:B71,"Tradizionale"), 0) -> 0.5377272727 | M79: =IFERROR(AVERAGEIFS(M10:M71,A10:A71,"1.Impresa vigilata",B10:B71,"Tradizionale"), 0) -> 0.5854545455
C80: Valori medi estere | D80: canale b/f | E80: =IFERROR(AVERAGEIFS(E10:E71,A10:A71,"2.Impresa estera",B10:B71,"Bancario/finanziario"), 0) -> 0 | G80: =IFERROR(AVERAGEIFS(G10:G71,A10:A71,"2.Impresa estera",B10:B71,"Bancario/finanziario"), 0) -> 0 | J80: =IFERROR(AVERAGEIFS(J10:J71,A10:A71,"2.Impresa estera",B10:B71,"Bancario/finanziario"), 0) -> 0 | M80: =IFERROR(AVERAGEIFS(M10:M71,A10:A71,"2.Impresa estera",B10:B71,"Bancario/finanziario"), 0) -> 0
D81: canale tradiz. | E81: =IFERROR(AVERAGEIFS(E10:E71,A10:A71,"2.Impresa estera",B10:B71,"Tradizionale"), 0) -> 14.15875 | G81: =IFERROR(AVERAGEIFS(G10:G71,A10:A71,"2.Impresa estera",B10:B71,"Tradizionale"), 0) -> 11.66625 | J81: =IFERROR(AVERAGEIFS(J10:J71,A10:A71,"2.Impresa estera",B10:B71,"Tradizionale"), 0) -> 0.4288888889 | M81: =IFERROR(AVERAGEIFS(M10:M71,A10:A71,"2.Impresa estera",B10:B71,"Tradizionale"), 0) -> 0.8355555556
C82: Valori medi canale diretto ' | E82: =IFERROR(AVERAGEIFS(E10:E71,B10:B71,"diretto"), 0) -> 18.72166667 | G82: =IFERROR(AVERAGEIFS(G10:G71,B10:B71,"diretto"), 0) -> 12.38833333 | J82: =IFERROR(AVERAGEIFS(J10:J71,B10:B71,"diretto"), 0) -> 2.843333333 | M82: =IFERROR(AVERAGEIFS(M10:M71,B10:B71,"diretto"), 0) -> 1.883333333
A84: (1) Per le imprese con un numero di reclami non significativo nel ramo RC Auto e Natanti (inferiore a 6) non sono stati calcolati gli indicatori presenti in questa tavola.
A85: (2) Il Regolamento n. 24/2008, all. 1, definisce i criteri da seguire per la classificazione dei reclami tra le diverse aree aziendali (commerciale, liquidativa, industriale, amministrativa, legale, informatica, altro). In particolare:
A86: Reclami area liquidativa: | C86: reclami aventi prevalentemente ad oggetto la condotta di liquidatori, periti, call center, ritardi e disfunzioni liquidative nei rami danni o vita e quant'altro attenga alla gestione dei sinistri o alla liquidazione delle prestazioni assicurative.
A87: Reclami area amministrativa: | C87: reclami concernenti la gestione organizzativa, i tempi e le procedure di invio delle informative contrattuali, dell'attestazione dello stato di rischio e delle altre informazioni dovute, ecc.
A88: Reclami area commerciale: | C88: reclami aventi prevalentemente ad oggetto la condotta o il comportamento dell'intermediario o dell'impresa nella fase di distribuzione del prodotto.
A90: (3) - Imprese con sede legale in un Paese UE, operanti in Italia in regime di stabilimento o di libera prestazione dei servizi (ossia senza una sede stabile in Italia). Sono tenute alla comunicazione le sole imprese che ricevono nell'anno più di 20 reclami.
A92: (4) Fonte: comunicazioni trimestrali all'IVASS sulla raccolta premi per canale distributivo. Per le sole imprese estere operanti in regime di libera prestazione dei servizi, l'informativa è qualitativa ed è ricavata da altre informative a disposizione dell'Istituto. Canale "Tradizionale": Agenzie, Brokers, Altre forme di vendita diretta >50% premi lordi contabilizzati nel periodo di riferimento; Canale "Bancario/Finanziario: Promotori finanziari, sportelli bancari e postali >50% premi lordi contabilizzati nel periodo di riferimento.
A94: (5) - NA: Outlier dato non inserito nella media - fare click per visualizzare il valore sulla cella
A96: Fonte: elaborazione prospetti informatici inviati dalle imprese all'IVASS ai sensi del Regolamento n. 24/2008 - segnazioni Infostat al 14 aprile 2023.
